bitfinex/quotes_BTCUSD_20250523
["timestamp","ask_amount","ask_price","bid_price","bid_amount"]
[1747963880913,0.03793428,111310.0,111300.0,5.57894927]
[1747963881099,0.21761265,111310.0,111300.0,5.56996511]
[1747963881303,0.21761321,111310.0,111300.0,5.56098071]
[1747963881534,0.21761321,111310.0,111300.0,5.57894959]
[1747963881852,0.01996718,111310.0,111300.0,5.58793383]
[1747963882091,0.01996678,111310.0,111300.0,5.58793383]
[1747963882271,0.01996662,111310.0,111300.0,5.58793383]
[1747963882739,0.02895013,111310.0,111300.0,5.58793383]
[1747963882963,0.002,111310.0,111300.0,5.58793383]
[1747963883359,0.281,111330.0,111320.0,0.60059352]
[1747963883563,0.281,111330.0,111320.0,5.46365508]
[1747963883812,0.29896355,111330.0,111320.0,5.46365508]
[1747963884021,0.29896355,111330.0,111320.0,5.49058808]
[1747963884022,0.30794561,111330.0,111320.0,5.49058808]
[1747963884217,0.31692775,111330.0,111320.0,5.49158808]
[1747963884447,0.47861061,111330.0,111320.0,5.25329456]
[1747963884657,0.50221061,111330.0,111320.0,5.506356]
[1747963885116,0.50421061,111330.0,111320.0,5.506356]
[1747963885337,0.48161061,111330.0,111320.0,5.506356]
[1747963886634,0.50331061,111330.0,111320.0,5.506356]
[1747963887145,0.48161061,111330.0,111320.0,5.7039842]
[1747963887325,0.3019642,111330.0,111320.0,5.80251238]
[1747963887555,0.3019642,111330.0,111320.0,5.85809492]
[1747963887963,0.30196372,111330.0,111320.0,5.85809492]
[1747963888132,0.29298174,111330.0,111320.0,5.83706049]
[1747963888396,0.31094586,111330.0,111320.0,5.83706049]
[1747963888599,0.31094586,111330.0,111320.0,5.84771824]
[1747963888807,0.31094586,111330.0,111320.0,5.8387357]
[1747963888808,0.49059195,111330.0,111320.0,5.8387357]
[1747963888945,0.49957425,111330.0,111320.0,5.8251184]
[1747963889146,0.31992816,111330.0,111320.0,5.81613578]
[1747963889349,0.31094586,111330.0,111320.0,5.82511832]
[1747963889589,0.31992808,111330.0,111320.0,5.82511832]
[1747963890000,0.49957417,111330.0,111320.0,5.80547803]
[1747963890201,0.49957417,111330.0,111320.0,5.80473383]
[1747963890202,0.31992808,111330.0,111320.0,5.80473383]
[1747963890429,0.31094586,111330.0,111320.0,5.80473383]
[1747963890628,0.49059195,111330.0,111320.0,5.78676859]
[1747963890918,0.48061053,111330.0,111320.0,5.58914039]
[1747963891150,0.48061053,111330.0,111320.0,5.59014039]
[1747963891449,0.48061053,111330.0,111320.0,5.57586713]
[1747963891675,0.47861053,111330.0,111320.0,5.7734955]
[1747963891899,0.47861053,111330.0,111320.0,5.7744955]
[1747963892126,0.47861053,111330.0,111320.0,5.78347845]
[1747963892357,0.47861053,111330.0,111320.0,5.79246131]
[1747963892542,0.47861053,111330.0,111320.0,5.80144409]
[1747963892790,0.47861053,111330.0,111320.0,5.78347845]
[1747963893036,0.47861053,111330.0,111320.0,5.76711809]
[1747963893227,0.47861053,111330.0,111320.0,5.75813514]
[1747963893433,0.47861053,111330.0,111320.0,5.56042677]
[1747963893636,0.47861053,111330.0,111320.0,5.75805498]
[1747963893810,0.47861053,111330.0,111320.0,5.74907203]
[1747963894010,0.50031053,111330.0,111320.0,5.74907203]
[1747963894237,0.47861053,111330.0,111320.0,5.10603768]
[1747963894451,0.47861053,111330.0,111320.0,5.7910203]
[1747963894979,0.47861053,111330.0,111320.0,5.78203768]
[1747963895708,0.47861053,111330.0,111320.0,5.77305498]
[1747963895974,0.52441053,111330.0,111320.0,5.21672121]
[1747963896171,0.52441053,111330.0,111320.0,4.33950521]
[1747963896389,0.52441053,111330.0,111320.0,4.31880521]
[1747963896598,0.29896404,111330.0,111320.0,4.52541579]
[1747963896806,0.29896404,111330.0,111320.0,4.61496135]
[1747963896807,0.29896355,111330.0,111320.0,4.61496135]
[1747963897038,0.31692791,111330.0,111320.0,4.61496143]
[1747963897242,0.31692791,111330.0,111320.0,4.62394397]
[1747963897478,0.49657465,111330.0,111320.0,4.61496151]
[1747963897685,0.48759275,111330.0,111320.0,4.61496151]
[1747963898452,0.47861029,111330.0,111320.0,4.64694413]
[1747963898779,0.47861029,111330.0,111320.0,4.67872667]
[1747963898780,0.28998165,111330.0,111320.0,4.67872667]
[1747963899025,0.281,111330.0,111320.0,4.67872667]
[1747963899234,0.29896339,111330.0,111320.0,4.67872667]
[1747963899445,0.30794513,111330.0,111320.0,4.68231584]
[1747963899856,0.29896331,111330.0,111320.0,4.68231584]
[1747963900020,0.28998157,111330.0,111320.0,4.68231584]
[1747963900423,0.29896339,111330.0,111320.0,4.68231584]
[1747963900623,0.29896331,111330.0,111320.0,4.68231584]
[1747963900842,0.28998157,111330.0,111320.0,4.64524258]
[1747963901485,0.4786094,111330.0,111320.0,3.63212112]
[1747963901687,0.52521013,111330.0,111320.0,4.30808112]
[1747963901906,0.51622823,111330.0,111320.0,4.30808112]
[1747963902144,0.49302823,111330.0,111320.0,4.50570941]
[1747963902373,0.46962823,111330.0,111320.0,4.50570941]
[1747963902600,0.2899819,111330.0,111320.0,4.61322021]
[1747963902800,0.496574,111330.0,111320.0,4.59525497]
[1747963903080,0.496574,111330.0,111320.0,4.58627202]
[1747963903264,0.47861045,111330.0,111320.0,4.59525497]
[1747963903557,0.47861045,111330.0,111320.0,4.60423783]
[1747963903908,0.28998206,111330.0,111320.0,4.61322061]
[1747963904110,0.29896339,111330.0,111320.0,4.62220331]
[1747963904316,0.31692759,111330.0,111320.0,4.62220282]
[1747963904714,0.31692751,111330.0,111320.0,4.62220241]
[1747963904915,0.30794537,111330.0,111320.0,4.62220241]
[1747963905122,0.0552138,111350.0,111320.0,4.62488891]
[1747963905331,0.03376645,111350.0,111340.0,0.54657347]
[1747963905532,0.08612486,111370.0,111360.0,0.53755706]
[1747963905756,0.06906087,111370.0,111360.0,5.72677238]
[1747963905952,0.04212486,111370.0,111360.0,5.72677238]
[1747963906155,0.0600818,111370.0,111360.0,5.81631794]
[1747963906390,0.06906055,111370.0,111360.0,5.81631794]
[1747963906598,0.26660018,111370.0,111360.0,5.80733862]
[1747963906927,0.23966449,111370.0,111360.0,5.60978156]
[1747963907332,0.23966449,111370.0,111360.0,5.80733862]
[1747963907563,0.23068518,111370.0,111360.0,5.81631802]
[1747963907804,0.02893617,111370.0,111360.0,5.83961369]
[1747963908039,0.20851774,111370.0,111360.0,5.81825497]
[1747963908266,0.21251822,111370.0,111360.0,5.81825497]
[1747963908743,0.21251822,111370.0,111360.0,5.86825513]
[1747963909738,0.0239571,111370.0,111360.0,5.91749417]
[1747963909976,0.0239571,111370.0,111360.0,5.92647349]
[1747963910199,0.04191468,111370.0,111360.0,5.92647349]
[1747963910875,0.05089367,111370.0,111360.0,5.92647349]
[1747963911077,0.0399146,111370.0,111360.0,5.92647349]
[1747963911291,0.04889351,111370.0,111360.0,5.92647349]
[1747963911503,0.04789351,111370.0,111360.0,5.92647349]
[1747963911916,0.0399146,111370.0,111360.0,5.92647349]
[1747963912141,0.0399146,111370.0,111360.0,5.97397349]
[1747963912331,0.04889351,111370.0,111360.0,5.97397349]
[1747963912673,0.04789399,111370.0,111360.0,5.97397349]
[1747963913372,0.04689399,111370.0,111360.0,5.97397349]
[1747963913598,0.04689399,111370.0,111360.0,5.94937349]
[1747963913816,0.22647556,111370.0,111360.0,5.92243513]
[1747963914009,0.19953963,111370.0,111360.0,5.70197791]
[1747963914274,0.24513963,111370.0,111360.0,4.90519235]
[1747963914473,0.24513963,111370.0,111360.0,5.61239235]
[1747963914608,0.24513963,111370.0,111360.0,5.61439235]
[1747963915944,0.24513963,111370.0,111360.0,4.9178994]
[1747963916115,0.24513963,111370.0,111360.0,5.61074305]
[1747963916524,0.24513963,111370.0,111360.0,5.95392499]
[1747963916525,0.002,111370.0,111360.0,5.95392499]
[1747963916874,0.04488964,111380.0,111370.0,0.54651782]
[1747963917084,0.02693334,111380.0,111370.0,5.14033938]
[1747963917320,0.03591145,111380.0,111370.0,5.14033938]
[1747963917747,0.22445509,111380.0,111370.0,5.13136087]
[1747963917953,0.21547788,111380.0,111370.0,5.13136087]
[1747963918179,0.21547788,111380.0,111370.0,5.14033954]
[1747963918387,0.21647788,111380.0,111370.0,5.40044087]
[1747963918595,0.19852191,111380.0,111370.0,5.41471198]
[1747963918797,0.19952191,111380.0,111370.0,5.4326694]
[1747963919426,0.19952191,111380.0,111370.0,5.43266956]
[1747963919833,0.19952191,111380.0,111370.0,5.40573307]
[1747963920035,0.19952191,111380.0,111370.0,5.41471198]
[1747963920239,0.22202191,111380.0,111370.0,4.94809251]
[1747963920484,0.21304372,111380.0,111370.0,5.66419158]
[1747963920684,0.19054372,111380.0,111370.0,5.85275206]
[1747963921104,0.18156545,111380.0,111370.0,5.84377315]
[1747963921455,0.19054356,111380.0,111370.0,5.85275214]
[1747963921687,0.19952142,111380.0,111370.0,5.86173097]
[1747963921890,0.01995548,111380.0,111370.0,5.87968823]
[1747963922092,0.18164179,111390.0,111380.0,0.54649929]
[1747963922093,0.01097674,111390.0,111380.0,0.54649929]
[1747963922294,0.01097674,111390.0,111380.0,5.14032085]
[1747963922295,0.03806051,111390.0,111380.0,5.14032085]
[1747963922529,0.18155954,111430.0,111410.0,0.51951709]
[1747963922675,0.18206808,111430.0,111420.0,6.12050051]
[1747963922877,0.18206808,111430.0,111420.0,6.12723194]
[1747963923196,0.19104232,111430.0,111420.0,6.14518162]
[1747963923376,0.20001632,111430.0,111420.0,6.14518162]
[1747963923584,0.20001632,111430.0,111420.0,5.938756]
[1747963923896,0.22431632,111430.0,111420.0,5.938756]
[1747963924059,0.24811632,111430.0,111420.0,5.9494501]
[1747963924673,0.25111632,111430.0,111420.0,5.9493301]
[1747963924883,0.25111632,111430.0,111420.0,5.2423701]
[1747963925095,0.25411632,111430.0,111420.0,5.9493301]
[1747963925506,0.25411632,111430.0,111420.0,5.938636]
[1747963925747,0.25111632,111430.0,111420.0,5.938636]
[1747963925951,0.25211632,111430.0,111420.0,5.938636]
[1747963926782,0.24911632,111430.0,111420.0,5.231676]
[1747963926987,0.25111632,111430.0,111420.0,5.938636]
[1747963928825,0.20301632,111430.0,111420.0,6.16813698]
[1747963929030,0.20301632,111430.0,111420.0,5.988636]
[1747963930184,0.24961632,111430.0,111420.0,4.554276]
[1747963930385,0.42585606,111430.0,111420.0,0.75692]
[1747963930596,0.42585606,111430.0,111420.0,0.70692]
[1747963931220,0.25860908,111410.0,111400.0,0.38728]
[1747963931373,0.34815464,111410.0,111400.0,1.09416]
[1747963931595,0.34815464,111410.0,111400.0,0.8252]
[1747963931809,0.24965055,111400.0,111390.0,0.0106941]
[1747963931980,0.34919611,111400.0,111390.0,0.7175741]
[1747963932193,0.62481926,111400.0,111390.0,0.7175741]
[1747963932396,0.23512663,111390.0,111380.0,0.01427095]
[1747963932684,0.23512663,111390.0,111360.0,0.003]
[1747963932685,0.25768,111370.0,111360.0,0.003]
[1747963932894,0.34722556,111370.0,111360.0,0.003]
[1747963933537,0.34722556,111370.0,111360.0,0.27215259]
[1747963933945,0.34822556,111370.0,111360.0,0.27215259]
[1747963934572,0.34922556,111370.0,111360.0,0.27215259]
[1747963934772,0.34822556,111370.0,111360.0,0.27215259]
[1747963935216,0.34722556,111370.0,111360.0,0.71011259]
[1747963935437,0.34922556,111370.0,111360.0,0.71011259]
[1747963935641,0.34922556,111370.0,111360.0,0.00315259]
[1747963935874,0.34922556,111370.0,111360.0,0.71019259]
[1747963936092,0.34922556,111370.0,111360.0,0.00315259]
[1747963936093,0.70629153,111370.0,111360.0,0.00315259]
[1747963936304,0.19557983,111360.0,111350.0,0.3874]
[1747963936538,0.33342539,111360.0,111350.0,0.82544]
[1747963937610,0.33342539,111360.0,111350.0,1.09448]
[1747963937806,0.33742539,111360.0,111350.0,1.09448]
[1747963938020,0.34142539,111360.0,111350.0,1.09448]
[1747963939002,0.71480649,111360.0,111350.0,0.3874]
[1747963939240,0.18859436,111350.0,111340.0,0.002]
[1747963939447,0.32683992,111350.0,111340.0,0.002]
[1747963939835,0.35138077,111350.0,111340.0,0.002]
[1747963940627,0.35438077,111350.0,111340.0,0.27108]
[1747963941042,0.35738077,111350.0,111340.0,0.27108]
[1747963941254,0.33283992,111350.0,111340.0,0.27108]
[1747963941469,0.32683992,111350.0,111340.0,0.27108]
[1747963941822,0.34138077,111350.0,111340.0,0.27808]
[1747963942475,0.30223992,111350.0,111340.0,0.27808]
[1747963942832,0.30223992,111350.0,111340.0,0.27408]
[1747963943036,0.00201035,111340.0,111320.0,0.003]
[1747963943235,0.19761013,111330.0,111320.0,0.00539819]
[1747963943484,0.19761013,111330.0,111320.0,4.50742865]
[1747963943902,0.19761013,111330.0,111320.0,4.53262865]
[1747963944394,0.19761013,111330.0,111320.0,4.87162865]
[1747963944600,0.19761013,111330.0,111320.0,5.14174865]
[1747963944807,0.19761013,111330.0,111320.0,5.11754865]
[1747963945187,0.19761013,111330.0,111320.0,5.95062865]
[1747963945618,0.19761013,111330.0,111320.0,6.13029088]
[1747963945828,0.18165452,111340.0,111330.0,0.3489823]
[1747963946028,0.01099128,111340.0,111330.0,5.19769589]
[1747963946235,0.01099128,111340.0,111330.0,5.18871415]
[1747963946236,0.20858366,111340.0,111330.0,5.18871415]
[1747963946443,0.20858366,111340.0,111330.0,5.19769605]
[1747963946444,0.21756515,111340.0,111330.0,5.19769605]
[1747963946827,0.21756515,111340.0,111330.0,5.20667779]
[1747963947036,0.01997237,111340.0,111330.0,5.23561079]
[1747963947255,0.01997229,111340.0,111330.0,5.23961079]
[1747963947467,0.01997229,111340.0,111330.0,5.23761079]
[1747963947801,0.01997229,111340.0,111330.0,5.23961079]
[1747963948543,0.00201035,111340.0,111330.0,5.23961079]
[1747963948957,0.01795912,111360.0,111350.0,0.57698276]
[1747963949165,0.21551585,111360.0,111350.0,5.87528351]
[1747963949371,0.2155165,111360.0,111350.0,5.87528351]
[1747963949782,0.2155165,111360.0,111350.0,5.8932444]
[1747963950008,0.02693884,111360.0,111350.0,5.90222452]
[1747963950222,0.21551642,111360.0,111350.0,5.90222468]
[1747963950477,0.20653654,111360.0,111350.0,5.8942444]
[1747963950708,0.20653654,111360.0,111350.0,5.88526404]
[1747963950885,0.18857742,111360.0,111350.0,5.64950156]
[1747963951525,0.18857742,111360.0,111350.0,5.84707636]
[1747963951737,0.18857742,111360.0,111350.0,5.87137636]
[1747963952330,0.18857742,111360.0,111350.0,4.93482156]
[1747963952505,0.18857742,111360.0,111350.0,3.76568]
[1747963952506,0.21237742,111360.0,111350.0,3.76568]
[1747963952710,0.23567742,111360.0,111350.0,1.05568]
[1747963953478,0.21187742,111360.0,111350.0,1.05568]
[1747963953687,0.18857742,111360.0,111350.0,1.05568]
[1747963954456,0.18857742,111360.0,111350.0,5.559916]
[1747963954835,0.18857742,111360.0,111350.0,2.91514]
[1747963955039,0.23707742,111360.0,111350.0,0.4559]
[1747963955216,0.23707742,111360.0,111350.0,1.17054]
[1747963955423,0.18857742,111360.0,111350.0,1.17054]
[1747963956943,0.23667742,111360.0,111350.0,1.17054]
[1747963957327,0.18857742,111360.0,111350.0,1.17054]
[1747963960406,0.18857742,111360.0,111350.0,1.19464]
[1747963960693,0.18857742,111360.0,111350.0,1.21944]
[1747963960896,0.18857742,111360.0,111350.0,0.90142]
[1747963961103,0.23697742,111360.0,111350.0,1.17054]
[1747963962143,0.18857742,111360.0,111350.0,1.17054]
[1747963962769,0.18857742,111360.0,111350.0,0.83054]
[1747963966110,0.18857742,111360.0,111350.0,0.81694]
[1747963966723,0.18857742,111360.0,111350.0,1.49266036]
[1747963967183,0.18857742,111360.0,111350.0,1.48368]
[1747963967388,0.18857742,111360.0,111350.0,1.29508556]
[1747963967586,0.18857742,111360.0,111350.0,1.49266052]
[1747963967992,0.18857742,111360.0,111350.0,1.5026408]
[1747963968201,0.18857742,111360.0,111350.0,1.5295698]
[1747963968554,0.18857742,111360.0,111350.0,1.52058952]
[1747963968764,0.18857742,111360.0,111350.0,1.52058969]
[1747963968944,0.18857742,111360.0,111350.0,1.32201456]
[1747963969150,0.18857742,111360.0,111350.0,1.51260908]
[1747963969357,0.1795977,111360.0,111350.0,1.32401456]
[1747963969553,0.1795977,111360.0,111350.0,1.512609]
[1747963969734,0.18158157,111370.0,111360.0,0.0244]
[1747963969940,0.18158157,111370.0,111360.0,4.55492068]
[1747963970141,0.18158157,111370.0,111360.0,4.552676]
[1747963971095,0.18158157,111370.0,111360.0,4.940156]
[1747963972355,0.18158157,111370.0,111360.0,4.941156]
[1747963972716,0.01097875,111370.0,111360.0,5.57723794]
[1747963972944,0.02893617,111370.0,111360.0,5.59518362]
[1747963973172,0.2085183,111370.0,111360.0,5.59518378]
[1747963973383,0.19953955,111370.0,111360.0,5.59518378]
[1747963974498,0.19953955,111370.0,111360.0,5.58620406]
[1747963974903,0.19056064,111370.0,111360.0,5.39762656]
[1747963975149,0.19056064,111370.0,111360.0,5.57722426]
[1747963975351,0.19056064,111370.0,111360.0,5.58620406]
[1747963975605,0.19953947,111370.0,111360.0,5.5951837]
[1747963975812,0.19953947,111370.0,111360.0,5.60416318]
[1747963976774,0.19056064,111370.0,111360.0,5.39762656]
[1747963977031,0.19056064,111370.0,111360.0,5.39862656]
[1747963977640,0.19056064,111370.0,111360.0,5.529761]
[1747963978059,0.19056064,111370.0,111360.0,5.528761]
[1747963978270,0.19056064,111370.0,111360.0,5.529761]
[1747963978483,0.19056064,111370.0,111360.0,5.577761]
[1747963979081,0.19044468,111370.0,111360.0,5.577761]
[1747963979278,0.01995404,111390.0,111380.0,0.57654364]
[1747963979495,0.02010655,111390.0,111380.0,5.44838331]
[1747963979700,0.02010655,111390.0,111380.0,5.4394052]
[1747963979903,0.00215251,111390.0,111380.0,5.46633888]
[1747963980103,0.01112933,111390.0,111380.0,5.46633888]
[1747963980443,0.02110631,111390.0,111380.0,5.46633888]
[1747963980896,0.02010631,111390.0,111380.0,5.46633888]
[1747963981519,0.32040953,111390.0,111380.0,1.9437]
[1747963981738,0.32040953,111390.0,111370.0,4.504276]
[1747963981739,0.23614356,111380.0,111370.0,4.504276]
[1747963981998,0.23614356,111380.0,111370.0,5.205116]
[1747963982198,0.23514356,111380.0,111370.0,5.205116]
[1747963982404,0.18754356,111380.0,111370.0,5.205116]
[1747963982820,0.18654356,111380.0,111370.0,5.205116]
[1747963983675,0.18654356,111380.0,111370.0,5.206116]
[1747963983875,0.23444356,111380.0,111370.0,4.937076]
[1747963984093,0.23444356,111380.0,111370.0,5.206116]
[1747963984749,0.23444356,111380.0,111370.0,5.207116]
[1747963984921,0.23444356,111380.0,111370.0,5.206116]
[1747963985139,0.23444356,111380.0,111370.0,5.02764]
[1747963986411,0.23444356,111380.0,111370.0,4.7586]
[1747963986643,0.23444356,111380.0,111370.0,5.02764]
[1747963986821,0.23444356,111380.0,111370.0,5.00134]
[1747963986996,0.23544356,111380.0,111370.0,5.00134]
[1747963987385,0.23544356,111380.0,111370.0,4.26684]
[1747963987893,0.23644356,111380.0,111370.0,4.26684]
[1747963989555,0.23644356,111380.0,111370.0,1.80994]
[1747963989986,0.23644356,111380.0,111370.0,1.5409]
[1747963990184,0.23644356,111380.0,111370.0,1.59994]
[1747963991019,0.23644356,111380.0,111370.0,1.17594]
[1747963991226,0.23644356,111380.0,111370.0,1.51594]
[1747963991786,0.23644356,111380.0,111370.0,1.2469]
[1747963992009,0.23644356,111380.0,111370.0,1.04084]
[1747963992398,0.32598912,111380.0,111370.0,1.04084]
[1747963993078,0.32598912,111380.0,111370.0,0.70084]
[1747963994353,0.32598912,111380.0,111360.0,0.38748]
[1747963994354,0.23476048,111370.0,111360.0,0.38748]
[1747963994532,0.32430604,111370.0,111360.0,1.15932]
[1747963994730,0.32430604,111370.0,111360.0,1.4284]
[1747963995778,0.32430604,111370.0,111360.0,1.4294]
[1747963995986,0.23476048,111370.0,111360.0,5.933676]
[1747963996189,0.21146048,111370.0,111360.0,5.925036]
[1747963996337,0.18856048,111370.0,111360.0,5.925036]
[1747963996740,0.23686048,111370.0,111360.0,1.86686]
[1747963996938,0.23686048,111370.0,111360.0,1.69236]
[1747963997576,0.23686048,111370.0,111360.0,1.69136]
[1747963997978,0.23786048,111370.0,111360.0,1.69136]
[1747963998152,0.23886048,111370.0,111360.0,1.69136]
[1747963999695,0.23886048,111370.0,111360.0,1.62006]
[1747964000685,0.23886048,111370.0,111360.0,1.54406]
[1747964000919,0.32840604,111370.0,111360.0,1.15068]
[1747964001119,0.32840604,111370.0,111360.0,1.41976]
[1747964001875,0.32840604,111370.0,111360.0,0.72748]
[1747964002229,0.32840604,111370.0,111360.0,1.41984]
[1747964002840,0.32840604,111370.0,111360.0,1.15072]
[1747964002982,0.32840604,111370.0,111360.0,1.41984]
[1747964007414,0.30410604,111370.0,111360.0,5.924116]
[1747964008057,0.28010604,111370.0,111360.0,5.924116]
[1747964009873,0.32890604,111370.0,111360.0,1.58074]
[1747964010577,0.32890604,111370.0,111360.0,1.56144]
[1747964011319,0.32890604,111370.0,111360.0,1.41984]
[1747964012465,0.34344689,111370.0,111360.0,1.41984]
[1747964012654,0.34344689,111370.0,111360.0,0.72748]
[1747964012882,0.34344689,111370.0,111360.0,1.41984]
[1747964013758,0.62839343,111370.0,111360.0,1.07984]
[1747964014208,0.70054676,111370.0,111360.0,0.81072]
[1747964014437,0.27321549,111350.0,111340.0,0.002]
[1747964014658,0.63770759,111350.0,111340.0,0.002]
[1747964014888,1.7432291,111350.0,111340.0,0.002]
[1747964015103,0.53919868,111340.0,111330.0,0.67094367]
[1747964015314,0.62874424,111340.0,111330.0,0.65664]
[1747964015752,0.62874424,111340.0,111330.0,0.65679265]
[1747964015952,0.3637977,111340.0,111330.0,0.65679265]
[1747964016388,0.3537977,111340.0,111330.0,0.65679265]
[1747964016599,0.3667977,111340.0,111330.0,0.65679265]
[1747964016769,0.3567977,111340.0,111330.0,0.65679265]
[1747964017596,0.3597977,111340.0,111330.0,0.65679265]
[1747964017984,0.3597977,111340.0,111330.0,0.38767265]
[1747964018196,0.3597977,111340.0,111330.0,1.08015265]
[1747964018876,0.3497977,111340.0,111330.0,1.08015265]
[1747964021683,0.33525685,111340.0,111330.0,1.08015265]
[1747964023439,0.33525685,111340.0,111330.0,1.08019265]
[1747964024049,0.3497977,111340.0,111330.0,1.08019265]
[1747964024509,0.3597977,111340.0,111330.0,0.38767265]
[1747964024759,0.3597977,111340.0,111330.0,1.08023265]
[1747964025140,0.35927406,111340.0,111330.0,1.08023265]
[1747964027176,1.04527406,111340.0,111330.0,1.08023265]
[1747964028468,0.26378495,111330.0,111320.0,0.002]
[1747964028652,0.35333051,111330.0,111320.0,0.41672]
[1747964029594,0.35533051,111330.0,111320.0,0.68592]
[1747964031568,0.35733051,111330.0,111320.0,0.68592]
[1747964031801,0.34278966,111330.0,111320.0,0.68592]
[1747964032041,0.2027441,111330.0,111320.0,5.579996]
[1747964032453,0.2027441,111330.0,111320.0,2.64232]
[1747964033182,0.21172616,111330.0,111320.0,2.64232]
[1747964033411,0.2027441,111330.0,111320.0,2.64232]
[1747964034095,0.19262823,111330.0,111320.0,2.64232]
[1747964035159,0.19062823,111330.0,111320.0,1.94828413]
[1747964035380,0.18862823,111330.0,111320.0,2.75064413]
[1747964035860,0.18962823,111330.0,111320.0,2.75064413]
[1747964036587,0.18962823,111330.0,111320.0,3.01984413]
[1747964037077,0.18962823,111330.0,111320.0,3.02882724]
[1747964037310,0.18962823,111330.0,111320.0,3.01984413]
[1747964037820,0.00015242,111340.0,111330.0,0.59519203]
[1747964038093,0.00015242,111340.0,111330.0,5.18901359]
[1747964038348,0.01996,111350.0,111340.0,0.59667347]
[1747964038576,0.01097996,111350.0,111340.0,5.10094947]
[1747964038816,0.01996032,111350.0,111340.0,5.10094947]
[1747964039043,0.02894044,111350.0,111340.0,5.19049503]
[1747964039289,0.2175352,111350.0,111340.0,5.1815141]
[1747964039533,0.03792137,111350.0,111340.0,5.1994762]
[1747964039756,0.03892137,111350.0,111340.0,5.1815141]
[1747964039997,0.2185352,111350.0,111340.0,4.98392156]
[1747964040256,0.2005748,111350.0,111340.0,4.98392156]
[1747964040479,0.1995748,111350.0,111340.0,5.25312156]
[1747964040948,0.1995748,111350.0,111340.0,5.163576]
[1747964041170,0.2005748,111350.0,111340.0,4.0003]
[1747964041417,0.31074552,111350.0,111340.0,0.71232]
[1747964041643,0.36127369,111350.0,111340.0,0.71232]
[1747964041865,0.36127369,111350.0,111340.0,1.05332]
[1747964042048,0.36127369,111350.0,111340.0,0.71332]
[1747964042281,0.36127369,111350.0,111340.0,1.05332]
[1747964042487,0.36127369,111350.0,111340.0,0.71232]
[1747964042707,0.36127369,111350.0,111340.0,1.05232]
[1747964042913,0.36327369,111350.0,111340.0,1.05232]
[1747964043354,0.36327369,111350.0,111340.0,0.34]
[1747964043558,0.29112036,111350.0,111340.0,1.05228]
[1747964045520,0.34212036,111350.0,111340.0,0.78312]
[1747964045752,0.34212036,111350.0,111340.0,1.05228]
[1747964047853,0.29112036,111350.0,111340.0,5.556556]
[1747964048058,0.29112036,111350.0,111340.0,5.580956]
[1747964048431,0.29112036,111350.0,111340.0,5.265156]
[1747964051340,0.3870923,111350.0,111340.0,0.71228]
[1747964051551,0.34002036,111350.0,111340.0,0.71228]
[1747964051969,0.31632036,111350.0,111340.0,0.71228]
[1747964052177,0.31432036,111350.0,111340.0,1.05228]
[1747964052397,0.33802036,111350.0,111340.0,0.44312]
[1747964052541,0.33802036,111350.0,111340.0,0.71228]
[1747964052954,0.34002036,111350.0,111340.0,0.71228]
[1747964053982,0.34102036,111350.0,111340.0,0.71228]
[1747964055076,0.34102036,111350.0,111340.0,0.44312]
[1747964055288,0.34102036,111350.0,111340.0,0.71228]
[1747964057781,0.29212036,111350.0,111340.0,5.582156]
[1747964058465,0.29212036,111350.0,111340.0,5.606256]
[1747964059901,0.29212036,111350.0,111340.0,5.582156]
[1747964060883,0.29212036,111350.0,111340.0,5.556556]
[1747964061490,0.29212036,111350.0,111340.0,5.19778]
[1747964062196,0.34262036,111350.0,111340.0,0.78312]
[1747964062414,0.34262036,111350.0,111340.0,1.05228]
[1747964066319,0.34262036,111350.0,111340.0,0.71228]
[1747964069670,0.34262036,111350.0,111340.0,0.44312]
[1747964069966,0.35716121,111350.0,111340.0,0.71228]
[1747964070389,0.35416121,111350.0,111340.0,0.44312]
[1747964070599,1.37048378,111350.0,111340.0,0.44312]
[1747964070851,1.38248378,111350.0,111340.0,0.71228]
[1747964071274,0.17967837,111310.0,111300.0,0.0253]
[1747964071496,0.17967837,111310.0,111300.0,4.95992842]
[1747964071710,0.17967837,111310.0,111300.0,3.70785242]
[1747964072106,0.17967837,111310.0,111300.0,1.30475242]
[1747964072279,0.17967837,111310.0,111300.0,1.57391242]
[1747964072453,0.17967837,111310.0,111300.0,1.54861242]
[1747964072648,0.17967837,111310.0,111300.0,1.44251242]
[1747964072850,0.17967837,111310.0,111300.0,1.17335242]
[1747964073085,0.37000029,111310.0,111300.0,0.43035242]
[1747964073308,0.33406478,111310.0,111300.0,0.69951242]
[1747964073548,0.33406478,111310.0,111300.0,0.70790042]
[1747964074764,0.33506478,111310.0,111300.0,0.70790042]
[1747964075596,0.33606478,111310.0,111300.0,0.70790042]
[1747964077219,0.33606478,111310.0,111300.0,0.70794042]
[1747964077545,0.33606478,111310.0,111300.0,0.70802042]
[1747964078066,0.33606478,111310.0,111300.0,0.69963242]
[1747964078453,0.33606478,111310.0,111300.0,0.43043242]
[1747964078713,0.33606478,111310.0,111300.0,0.69967242]
[1747964080679,0.33606478,111310.0,111300.0,0.00015242]
[1747964080871,0.33606478,111310.0,111300.0,0.69971242]
[1747964082604,0.27122393,111310.0,111300.0,0.69971242]
[1747964085993,0.27122393,111310.0,111300.0,0.72351242]
[1747964086406,0.27122393,111310.0,111300.0,0.74931242]
[1747964087006,0.18167837,111310.0,111300.0,1.08931242]
[1747964087207,0.18167837,111310.0,111300.0,5.59358842]
[1747964094900,0.18167837,111310.0,111300.0,4.89402842]
[1747964095109,0.18167837,111310.0,111300.0,5.57974842]
[1747964097319,0.18067837,111310.0,111300.0,5.57974842]
[1747964097831,0.17967837,111310.0,111300.0,5.57974842]
[1747964098213,0.17967837,111310.0,111300.0,5.58074842]
[1747964100027,0.17967837,111310.0,111300.0,5.31150842]
[1747964100208,0.17967837,111310.0,111300.0,5.58074842]
[1747964100414,0.17967837,111310.0,111300.0,2.18613242]
[1747964100618,0.20297837,111310.0,111300.0,0.86133242]
[1747964100822,0.20297837,111310.0,111300.0,1.13057242]
[1747964101831,0.20297837,111310.0,111300.0,1.51825242]
[1747964103726,0.20297837,111310.0,111300.0,1.24901242]
[1747964103954,0.20297837,111310.0,111300.0,1.51825242]
[1747964106459,0.20297837,111310.0,111300.0,1.51725242]
[1747964106838,0.20497837,111310.0,111300.0,1.51725242]
[1747964107500,0.31822393,111310.0,111300.0,1.14431242]
[1747964107648,0.31922393,111310.0,111300.0,1.14431242]
[1747964107857,0.31922393,111310.0,111300.0,0.38783242]
[1747964108085,0.33376478,111310.0,111300.0,1.07355242]
[1747964108715,0.33376478,111310.0,111300.0,1.08194499]
[1747964109334,1.4225851,111310.0,111300.0,0.39622499]
[1747964109567,1.4225851,111310.0,111300.0,0.66546499]
[1747964110006,1.36686465,111310.0,111300.0,0.65707242]
[1747964110228,1.01776478,111310.0,111300.0,0.65707242]